[Event "WGM Cvijet Mediterana 2019"]
[Site "Rijeka"]
[Date "2019.03.03"]
[Round "1.1"]
[White "Medic, Mirjana"]
[Black "Cvitan, Ena"]
[Result "1/2-1/2"]
[ECO "D36"]
[WhiteElo "2207"]
[BlackElo "2203"]
[Annotator "NA"]
[PlyCount "20"]
[EventDate "2019.03.03"]
[EventType "tourn"]
[EventCountry "CRO"]
[SourceTitle "playchess.com"]
[Source "ChessBase"]
[SourceQuality "1"]
[TimeControl "5400+30"]

1. d4 {[%emt 0:00:30]} d5 {[%emt 0:00:30]} 2. c4 {[%emt 0:00:00]} e6 {[%emt 0:00:00]} 3. Nc3 {[%emt 0:00:00]} Nf6 {[%emt 0:00:00]} 4. Bg5 {[%emt 0:00:00]} Be7 {[%emt 0:00:00]} 5. cxd5 {[%emt 0:00:00]} exd5 {[%emt 0:00:00]} 6. Qc2 {[%emt 0:00:30]} c6 {[%emt 0:00:30]} 7. e3 {[%emt 0:00:30]} O-O {[%emt 0:00:30]} 8. Nf3 {[%emt 0:00:00]} h6 {[%emt 0:00:30]} 9. Bh4 {[%emt 0:00:00]} Nh5 {[%emt 0:00:30]} 10. Bxe7 {[%emt 0:00:30]} Qxe7 {[%emt 0:00:30]} 1/2-1/2

[Event "WGM Cvijet Mediterana 2019"]
[Site "Rijeka"]
[Date "2019.03.03"]
[Round "1.4"]
[White "Miladinovic, Lena"]
[Black "Djukic, Sandra"]
[Result "1/2-1/2"]
[ECO "D14"]
[WhiteElo "2140"]
[BlackElo "2157"]
[Annotator "NA"]
[PlyCount "22"]
[EventDate "2019.03.03"]
[EventType "tourn"]
[EventCountry "CRO"]
[SourceTitle "playchess.com"]
[Source "ChessBase"]
[SourceQuality "1"]
[TimeControl "5400+30"]

1. d4 {[%emt 0:10:30]} d5 {[%emt 0:00:30]} 2. Nf3 {[%emt 0:00:30]} Nf6 {[%emt 0:00:00]} 3. Bf4 {[%emt 0:00:30]} c5 {[%emt 0:00:00]} 4. c3 {[%emt 0:00:00]} cxd4 {[%emt 0:00:00]} 5. cxd4 {[%emt 0:00:00]} Nc6 {[%emt 0:00:00]} 6. Nc3 {[%emt 0:00:30]} Bf5 {[%emt 0:00:30]} 7. e3 {[%emt 0:00:00]} e6 {[%emt 0:00:30]} 8. Bd3 {[%emt 0:00:00]} Bxd3 {[%emt 0:00:00]} 9. Qxd3 {[%emt 0:00:30]} Bd6 {[%emt 0:00:00]} 10. Bxd6 {[%emt 0:00:00]} Qxd6 {[%emt 0:00:30]} 11. O-O {[%emt 0:00:00]} O-O {[%emt 0:00:30]} 1/2-1/2

[Event "WGM Cvijet Mediterana 2019"]
[Site "Rijeka"]
[Date "2019.03.03"]
[Round "2.4"]
[White "Babiy, Olga"]
[Black "Vujnovic, Patricija"]
[Result "1-0"]
[ECO "B11"]
[WhiteElo "2305"]
[BlackElo "2056"]
[Annotator "NA RC"]
[PlyCount "97"]
[EventDate "2019.03.03"]
[EventType "tourn"]
[EventCountry "CRO"]
[SourceTitle "playchess.com"]
[Source "ChessBase"]
[SourceQuality "1"]
[TimeControl "5400+30"]

1. e4 {[%emt 0:00:30]} c6 {[%emt 0:00:30]} 2. Nc3 {[%emt 0:00:00]} d5 {[%emt 0:00:00]} 3. Nf3 {[%emt 0:00:00]} dxe4 {[%emt 0:00:00]} 4. Nxe4 {[%emt 0:00:30]} Nf6 {[%emt 0:00:30]} 5. Qe2 {[%emt 0:00:00]} Nxe4 {[%emt 0:00:30]} 6. Qxe4 {[%emt 0:00:00]} Qd5 {[%emt 0:00:30] B11: Caro-Kann: Two Knights Variation} 7. Qf4 {[%emt 0:00:00]} Qf5 {[%emt 0:04:30]} 8. Qe3 {[%emt 0:00:00]} Qe6 {[%emt 0:07:30]} 9. b3 {[%emt 0:00:30]} Qxe3+ {[%emt 0:01:30]} 10. fxe3 {[%emt 0:00:00]} Bg4 {[%emt 0:03:30]} 11. Be2 {[%emt 0:01:00]} Nd7 {[%emt 0:01:30]} 12. Bb2 {[%emt 0:00:00]} e6 {[%emt 0:11:30]} 13. O-O-O $146 {[%emt 0:02:00]} ({Predecessor:} 13. h3 Bxf3 14. Bxf3 {1-0 (32) Stevic,H (2607)-Krstic,U (2420) Mali Losinj 2016}) 13... Nf6 {[%emt 0:09:30]} 14. h3 {[%emt 0:03:30]} Bxf3 {[%emt 0:03:30]} 15. Bxf3 {[%emt 0:00:30]} Be7 {[%emt 0:02:30]} 16. g4 {[%emt 0:01:30]} O-O {[%emt 0:00:30]} 17. Rdf1 {[%emt 0:07:30]} Nd7 {[%emt 0:02:30]} 18. h4 {[%emt 0:05:30]} a5 {[%emt 0:01:30]} 19. a3 {[%emt 0:09:30]} Rac8 {[%emt 0:04:30]} 20. g5 {[%emt 0:04:30]} a4 {[%emt 0:06:30]} 21. b4 {[%emt 0:02:30]} b5 {[%emt 0:02:30]} 22. Be2 {[%emt 0:02:30]} Nb6 {[%emt 0:00:30]} 23. g6 {[%emt 0:18:30]} f5 {[%emt 0:11:30]} 24. gxh7+ {[%emt 0:06:30]} Kxh7 {[%emt 0:00:30]} 25. e4 {[%emt 0:00:30]} Nc4 {[%emt 0:00:30]} 26. exf5 {[%emt 0:02:30]} Nxb2 {[%emt 0:01:30]} 27. Kxb2 {[%emt 0:00:30]} exf5 {[%emt 0:02:30]} 28. Bd3 {[%emt 0:00:00]} Rcd8 {[%emt 0:02:09]} 29. Bxf5+ {[%emt 0:09:00]} g6 {[%emt 0:04:34]} ({Black should try} 29... Kh6 $14) 30. Be4 {[%emt 0:03:30]} Rxf1 {[%emt 0:01:13]} 31. Rxf1 {[%emt 0:00:00]} Kg7 {[%emt 0:00:56]} 32. Bxc6 {[%emt 0:05:55]} Bxh4 {[%emt 0:04:33]} 33. Bxb5 {[%emt 0:00:34]} Rxd2 {[%emt 0:00:09]} 34. Bxa4 {[%emt 0:00:13]} Bf6+ {[%emt 0:00:33]} 35. Kb3 {[%emt 0:00:28]} Re2 {[%emt 0:00:43]} 36. Bb5 {[%emt 0:01:15]} Re3+ {[%emt 0:00:20]} 37. Bd3 {[%emt 0:00:05]} g5 {[%emt 0:00:25]} 38. Rg1 {[%emt 0:00:12]} Bd8 {[%emt 0:02:15]} 39. a4 {[%emt 0:00:43]} Kf6 {[%emt 0:00:40]} 40. a5 {[%emt 0:00:10]} Ke5 {[%emt 0:03:26]} 41. a6 {[%emt 0:00:38]} Bb6 {[%emt 0:02:07]} 42. Rxg5+ {[%emt 0:00:09]} Kd6 {[%emt 0:01:39]} 43. Kc4 {[%emt 0:00:11]} Re7 {[%emt 0:00:28]} 44. Kb5 {[%emt 0:00:59]} Ba7 {[%emt 0:00:35]} 45. c4 {[%emt 0:00:37]} Kc7 {[%emt 0:00:26]} 46. c5 {[%emt 0:02:06]} Rd7 {[%emt 0:00:15]} 47. Bc2 {[%emt 0:00:30]} Re7 {[%emt 0:00:32]} 48. Rg8 {[%emt 0:00:13]} Bb8 {[%emt 0:00:25]} 49. Bf5 {[%emt 0:00:27]} 1-0

[Event "WGM Cvijet Mediterana 2019"]
[Site "Rijeka"]
[Date "2019.03.03"]
[Round "3.1"]
[White "Hrescak, Ivana"]
[Black "Cvitan, Ena"]
[Result "1-0"]
[ECO "D31"]
[WhiteElo "2128"]
[BlackElo "2203"]
[Annotator "NA"]
[PlyCount "63"]
[EventDate "2019.03.03"]
[EventType "tourn"]
[EventCountry "CRO"]
[SourceTitle "playchess.com"]
[Source "ChessBase"]
[SourceQuality "1"]
[TimeControl "5400+30"]

1. d4 {[%emt 0:00:00]} d5 {[%emt 0:00:00]} 2. c4 {[%emt 0:00:00]} e6 {[%emt 0:00:00]} 3. Nc3 {[%emt 0:00:00]} a6 {[%emt 0:00:00]} 4. cxd5 {[%emt 0:00:00]} exd5 {[%emt 0:00:00]} 5. Qb3 {[%emt 0:01:30]} c5 {[%emt 0:05:30]} 6. Nxd5 {[%emt 0:16:30]} Be6 {[%emt 0:05:30]} 7. e4 {[%emt 0:00:30]} Nc6 {[%emt 0:00:00]} 8. Nf3 {[%emt 0:09:30]} cxd4 {[%emt 0:21:00]} 9. Bd2 {[%emt 0:11:30]} Rb8 {[%emt 0:07:30]} 10. Qc4 {[%emt 0:13:30]} Nge7 {[%emt 0:11:30]} 11. Nxd4 {[%emt 0:03:30]} Nxd4 {[%emt 0:00:30]} 12. Nc7+ {[%emt 0:06:30]} Qxc7 {[%emt 0:00:30]} 13. Qxc7 {[%emt 0:00:00]} Rc8 {[%emt 0:00:00]} 14. Qxb7 {[%emt 0:02:00]} Nc2+ {[%emt 0:00:00]} 15. Kd1 {[%emt 0:00:30]} Nxa1 {[%emt 0:00:00]} 16. Bxa6 {[%emt 0:02:30]} f6 {[%emt 0:12:00]} 17. Qb6 {[%emt 0:01:30]} Kf7 {[%emt 0:01:30]} 18. Bxc8 {[%emt 0:01:30]} Nxc8 {[%emt 0:00:30]} 19. Qc7+ {[%emt 0:01:30]} Be7 {[%emt 0:00:00]} 20. Ke2 {[%emt 0:01:30]} Nd6 {[%emt 0:05:00]} 21. Rxa1 {[%emt 0:03:30]} Rc8 {[%emt 0:00:30]} 22. Qb6 {[%emt 0:04:10]} Rc2 {[%emt 0:04:30]} 23. Rc1 {[%emt 0:03:21]} Bc4+ {[%emt 0:09:33]} 24. Kd1 {[%emt 0:03:11]} Rxc1+ {[%emt 0:00:11]} 25. Kxc1 {[%emt 0:00:41]} Be6 {[%emt 0:05:53]} 26. f3 {[%emt 0:02:04]} Nc4 {[%emt 0:00:16]} 27. Qa7 {[%emt 0:01:11]} Ne5 {[%emt 0:00:38]} 28. b3 {[%emt 0:00:53]} f5 {[%emt 0:01:43]} 29. Qc7 {[%emt 0:01:33]} Nd3+ {[%emt 0:00:45]} 30. Kc2 {[%emt 0:00:32]} fxe4 {[%emt 0:00:44]} 31. fxe4 {[%emt 0:00:49]} Nc5 {[%emt 0:00:43]} 32. Bb4 {[%emt 0:01:02]} 1-0

[Event "WGM Cvijet Mediterana 2019"]
[Site "Rijeka"]
[Date "2019.03.03"]
[Round "3.2"]
[White "Vujnovic, Patricija"]
[Black "Medic, Mirjana"]
[Result "1/2-1/2"]
[ECO "D00"]
[WhiteElo "2056"]
[BlackElo "2207"]
[Annotator "RC"]
[PlyCount "21"]
[EventDate "2019.03.03"]
[EventType "tourn"]
[EventCountry "CRO"]
[SourceTitle "playchess.com"]
[Source "ChessBase"]
[SourceQuality "1"]
[TimeControl "5400+30"]

1. d4 {[%emt 0:02:30]} d5 {[%emt 0:00:30]} 2. Bf4 {[%emt 0:00:30]} Nf6 {[%emt 0:00:00]} 3. e3 {[%emt 0:00:00]} e6 {[%emt 0:00:00]} 4. Bd3 {[%emt 0:00:00]} Bd6 {[%emt 0:00:00]} 5. Bg3 {[%emt 0:00:00]} Bxg3 {[%emt 0:00:00]} 6. hxg3 {[%emt 0:00:00]} Nbd7 {[%emt 0:00:30]} 7. Nf3 {[%emt 0:00:30]} c5 {[%emt 0:00:00]} 8. c3 {[%emt 0:00:00]} Qb6 {[%emt 0:00:00]} 9. Qc1 {[%emt 0:00:00]} h6 {[%emt 0:00:00]} 10. Nbd2 {[%emt 0:00:00]} c4 {[%emt 0:00:00]} 11. Bc2 {[%emt 0:00:00]} 1/2-1/2

[Event "WGM Cvijet Mediterana 2019"]
[Site "Rijeka"]
[Date "2019.03.03"]
[Round "3.3"]
[White "Miladinovic, Lena"]
[Black "Babiy, Olga"]
[Result "1/2-1/2"]
[ECO "E14"]
[WhiteElo "2140"]
[BlackElo "2305"]
[Annotator "NA"]
[PlyCount "73"]
[EventDate "2019.03.03"]
[EventType "tourn"]
[EventCountry "CRO"]
[SourceTitle "playchess.com"]
[Source "ChessBase"]
[SourceQuality "1"]
[TimeControl "5400+30"]

1. d4 {[%emt 0:00:30]} Nf6 {[%emt 0:00:30]} 2. Nf3 {[%emt 0:00:30]} e6 {[%emt 0:00:30]} 3. e3 {[%emt 0:00:00]} b6 {[%emt 0:01:30]} 4. Bd3 {[%emt 0:00:00]} Bb7 {[%emt 0:00:30]} 5. O-O {[%emt 0:00:00]} Be7 {[%emt 0:04:30]} 6. c4 {[%emt 0:00:00]} O-O {[%emt 0:01:30]} 7. Nc3 {[%emt 0:00:30]} d5 {[%emt 0:00:30]} 8. b3 {[%emt 0:01:30]} Nbd7 {[%emt 0:02:30]} 9. Bb2 {[%emt 0:00:30]} c5 {[%emt 0:05:30]} 10. cxd5 {[%emt 0:02:30]} cxd4 {[%emt 0:04:30]} 11. Nxd4 {[%emt 0:11:30]} Nxd5 {[%emt 0:01:30]} 12. Nxd5 {[%emt 0:06:30]} Bxd5 {[%emt 0:00:30]} 13. Rc1 {[%emt 0:09:30]} Nc5 {[%emt 0:10:30]} 14. Bb1 {[%emt 0:10:30]} g6 {[%emt 0:23:30]} 15. b4 {[%emt 0:08:30]} Ne4 {[%emt 0:04:30]} 16. f3 {[%emt 0:06:30]} Nf6 {[%emt 0:03:30]} 17. e4 {[%emt 0:03:30]} Bb7 {[%emt 0:00:30]} 18. Qb3 {[%emt 0:07:30]} Rc8 {[%emt 0:05:30]} 19. Rcd1 {[%emt 0:05:30]} Qe8 {[%emt 0:07:30]} 20. a4 {[%emt 0:04:33]} Bc6 {[%emt 0:06:54]} 21. b5 {[%emt 0:02:46]} Bd7 {[%emt 0:00:17]} 22. Kh1 {[%emt 0:02:06]} e5 {[%emt 0:01:23]} 23. Nc6 {[%emt 0:02:07]} Bxc6 {[%emt 0:01:41]} 24. bxc6 {[%emt 0:00:12]} Bc5 {[%emt 0:00:03]} 25. Bd3 {[%emt 0:02:39]} Nh5 {[%emt 0:02:38]} 26. g3 {[%emt 0:02:50]} Rxc6 {[%emt 0:02:40]} 27. Bb5 {[%emt 0:00:39]} Qe6 {[%emt 0:00:40]} 28. Qxe6 {[%emt 0:02:35]} Rxe6 {[%emt 0:00:04]} 29. Rd7 {[%emt 0:00:39]} a5 {[%emt 0:02:00]} 30. Bc4 {[%emt 0:03:33]} Rd6 {[%emt 0:01:38]} 31. Rxd6 {[%emt 0:01:12]} Bxd6 {[%emt 0:00:02]} 32. Rd1 {[%emt 0:00:09]} Be7 {[%emt 0:04:00]} 33. Bxe5 {[%emt 0:01:11]} Rc8 {[%emt 0:00:15]} 34. Bb3 {[%emt 0:01:00]} Nf6 {[%emt 0:02:14]} 35. Kg2 {[%emt 0:00:45]} Kf8 {[%emt 0:00:13]} 36. Kf2 {[%emt 0:02:23]} Ke8 {[%emt 0:00:09]} 37. Bxf6 {[%emt 0:01:01]} 1/2-1/2

[Event "WGM Cvijet Mediterana 2019"]
[Site "Rijeka"]
[Date "2019.03.03"]
[Round "3.4"]
[White "Zimina, Olga"]
[Black "Tomilova, Elena"]
[Result "1/2-1/2"]
[ECO "D14"]
[WhiteElo "2387"]
[BlackElo "2300"]
[Annotator "NA RC"]
[PlyCount "22"]
[EventDate "2019.03.03"]
[EventType "tourn"]
[EventCountry "CRO"]
[SourceTitle "playchess.com"]
[Source "ChessBase"]
[SourceQuality "1"]
[TimeControl "5400+30"]

1. c4 {[%emt 0:00:00]} d5 {[%emt 0:00:30]} 2. d4 {[%emt 0:00:00]} c6 {[%emt 0:00:00]} 3. cxd5 {[%emt 0:00:30]} cxd5 {[%emt 0:00:00]} 4. Nc3 {[%emt 0:00:00]} Nf6 {[%emt 0:00:00]} 5. Nf3 {[%emt 0:00:00]} Nc6 {[%emt 0:00:00]} 6. Bf4 {[%emt 0:00:00]} Bf5 {[%emt 0:00:30]} 7. e3 {[%emt 0:00:00]} e6 {[%emt 0:00:30]} 8. Bd3 {[%emt 0:00:30]} Bxd3 {[%emt 0:00:00]} 9. Qxd3 {[%emt 0:00:30]} Bd6 {[%emt 0:00:00]} 10. Bxd6 {[%emt 0:00:00]} Qxd6 {[%emt 0:00:00]} 11. O-O {[%emt 0:00:00]} O-O {[%emt 0:00:00]} 1/2-1/2

[Event "WGM Cvijet Mediterana 2019"]
[Site "Rijeka"]
[Date "2019.03.03"]
[Round "3.5"]
[White "Rakhmangulova, Anastasiya"]
[Black "Djukic, Sandra"]
[Result "0-1"]
[ECO "B84"]
[WhiteElo "2235"]
[BlackElo "2157"]
[Annotator "NA"]
[PlyCount "128"]
[EventDate "2019.03.03"]
[EventType "tourn"]
[EventCountry "CRO"]
[SourceTitle "playchess.com"]
[Source "ChessBase"]
[SourceQuality "1"]
[TimeControl "5400+30"]

1. e4 {[%emt 0:00:30]} c5 {[%emt 0:00:30]} 2. Nf3 {[%emt 0:00:00]} Nc6 {[%emt 0:00:00]} 3. d4 {[%emt 0:00:00]} cxd4 {[%emt 0:00:00]} 4. Nxd4 {[%emt 0:00:30]} Qc7 {[%emt 0:00:00]} 5. Nc3 {[%emt 0:00:00]} e6 {[%emt 0:00:00]} 6. Be3 {[%emt 0:00:00]} a6 {[%emt 0:00:00]} 7. Be2 {[%emt 0:00:00]} Nf6 {[%emt 0:00:00]} 8. O-O {[%emt 0:00:00]} Be7 {[%emt 0:02:30]} 9. f4 {[%emt 0:04:30]} d6 {[%emt 0:00:30]} 10. Bf3 {[%emt 0:10:30]} Nxd4 {[%emt 0:05:30]} 11. Qxd4 {[%emt 0:00:30]} e5 {[%emt 0:18:30]} 12. Qd2 {[%emt 0:01:30]} exf4 {[%emt 0:08:30]} 13. Bxf4 {[%emt 0:00:30]} Be6 {[%emt 0:00:30]} 14. a4 {[%emt 0:07:30]} Nd7 {[%emt 0:06:30]} 15. Nd5 {[%emt 0:07:30]} Bxd5 {[%emt 0:00:00]} 16. exd5 {[%emt 0:00:30]} O-O {[%emt 0:03:00]} 17. a5 {[%emt 0:05:30]} Bf6 {[%emt 0:07:30]} 18. c3 {[%emt 0:11:30]} Ne5 {[%emt 0:08:30]} 19. Be4 {[%emt 0:02:30]} Rae8 {[%emt 0:07:30]} 20. Ra4 {[%emt 0:04:30]} g6 {[%emt 0:03:30]} 21. Bxe5 {[%emt 0:06:30]} Bxe5 {[%emt 0:00:30]} 22. Bc2 {[%emt 0:00:30]} Bg7 {[%emt 0:04:30]} 23. Qf2 {[%emt 0:07:30]} Re5 {[%emt 0:00:30]} 24. Rf4 {[%emt 0:03:30]} Bh6 {[%emt 0:06:48]} 25. Rf3 {[%emt 0:00:30]} Qxa5 {[%emt 0:09:04]} 26. Bb3 {[%emt 0:05:30]} Qc7 {[%emt 0:05:33]} 27. Kh1 {[%emt 0:08:55]} Qe7 {[%emt 0:00:53]} 28. Bd1 {[%emt 0:03:17]} Bg7 {[%emt 0:02:08]} 29. b4 {[%emt 0:02:13]} Re4 {[%emt 0:00:46]} 30. g3 {[%emt 0:05:11]} f5 {[%emt 0:00:10]} 31. Rd3 {[%emt 0:02:04]} Re8 {[%emt 0:00:55]} 32. Bf3 {[%emt 0:00:45]} Rc4 {[%emt 0:00:29]} 33. Qd2 {[%emt 0:00:57]} Be5 {[%emt 0:00:39]} 34. Bd1 {[%emt 0:01:02]} Rec8 {[%emt 0:00:22]} 35. g4 {[%emt 0:00:27]} f4 {[%emt 0:00:35]} 36. Re1 {[%emt 0:00:22]} Qf6 {[%emt 0:00:14]} 37. Qg2 {[%emt 0:00:30]} Rxc3 {[%emt 0:00:32]} 38. g5 {[%emt 0:00:12]} Qf5 {[%emt 0:00:36]} 39. Rxc3 {[%emt 0:00:08]} Rxc3 {[%emt 0:00:04]} 40. Bf3 {[%emt 0:00:50]} Rc2 {[%emt 0:01:04]} 41. Qg1 {[%emt 0:00:28]} Qh3 {[%emt 0:00:30]} 42. Bg4 {[%emt 0:01:02]} Qc3 {[%emt 0:00:32]} 43. Bd1 {[%emt 0:00:25]} Rc1 {[%emt 0:00:26]} 44. Rf1 {[%emt 0:00:11]} Qd4 {[%emt 0:00:20]} 45. Qxd4 {[%emt 0:00:57]} Bxd4 {[%emt 0:00:04]} 46. Be2 {[%emt 0:00:08]} Rxf1+ {[%emt 0:00:00]} 47. Bxf1 {[%emt 0:00:30]} f3 {[%emt 0:00:12]} 48. Bh3 {[%emt 0:00:30]} b6 {[%emt 0:00:30]} 49. Bg4 {[%emt 0:00:30]} f2 {[%emt 0:00:30]} 50. Kg2 {[%emt 0:00:30]} h5 {[%emt 0:00:30]} 51. Be2 {[%emt 0:00:30]} a5 {[%emt 0:00:30]} 52. b5 {[%emt 0:00:30]} h4 {[%emt 0:00:30]} 53. Bd1 {[%emt 0:00:30]} Kf7 {[%emt 0:00:30]} 54. Bc2 {[%emt 0:00:30]} Be3 {[%emt 0:00:30]} 55. Bd3 {[%emt 0:00:30]} a4 {[%emt 0:00:30]} 56. h3 {[%emt 0:00:30]} a3 {[%emt 0:00:30]} 57. Bb1 {[%emt 0:00:30]} Bxg5 {[%emt 0:00:30]} 58. Kxf2 {[%emt 0:00:30]} Kf6 {[%emt 0:00:30]} 59. Ke2 {[%emt 0:00:30]} Ke5 {[%emt 0:00:30]} 60. Kd3 {[%emt 0:00:30]} Kf4 {[%emt 0:00:30]} 61. Ke2 {[%emt 0:00:30]} Kg3 {[%emt 0:00:30]} 62. Kd3 {[%emt 0:00:30]} Kxh3 {[%emt 0:00:30]} 63. Kc3 {[%emt 0:00:30]} Bf6+ {[%emt 0:00:30]} 64. Kb3 {[%emt 0:00:30]} g5 {[%emt 0:00:30]} 0-1

[Event "WGM Cvijet Mediterana 2019"]
[Site "Rijeka"]
[Date "2019.03.05"]
[Round "4.1"]
[White "Cvitan, Ena"]
[Black "Djukic, Sandra"]
[Result "1/2-1/2"]
[ECO "A47"]
[WhiteElo "2203"]
[BlackElo "2157"]
[Annotator "NA"]
[PlyCount "21"]
[EventDate "2019.03.03"]
[EventType "tourn"]
[EventCountry "CRO"]
[SourceTitle "playchess.com"]
[Source "ChessBase"]
[SourceQuality "1"]
[TimeControl "5400+30"]

1. d4 {[%emt 0:00:30]} Nf6 {[%emt 0:00:30]} 2. Nf3 {[%emt 0:00:30]} e6 {[%emt 0:00:30]} 3. Bf4 {[%emt 0:01:30]} b6 {[%emt 0:02:30]} 4. e3 {[%emt 0:00:30]} Bb7 {[%emt 0:00:30]} 5. Nbd2 {[%emt 0:00:30]} Be7 {[%emt 0:00:30]} 6. h3 $11 {[%emt 0:00:30]} c5 {[%emt 0:03:30]} 7. c3 {[%emt 0:00:30]} cxd4 {[%emt 0:02:30]} 8. exd4 {[%emt 0:00:30]} O-O {[%emt 0:01:30]} 9. Bd3 {[%emt 0:01:30]} d6 {[%emt 0:00:30]} 10. O-O {[%emt 0:07:30]} Nbd7 {[%emt 0:02:30]} 11. Bh2 {[%emt 0:03:30]} 1/2-1/2

[Event "WGM Cvijet Mediterana 2019"]
[Site "Rijeka"]
[Date "2019.03.05"]
[Round "4.4"]
[White "Medic, Mirjana"]
[Black "Miladinovic, Lena"]
[Result "1-0"]
[ECO "A46"]
[WhiteElo "2207"]
[BlackElo "2140"]
[Annotator "ChessBase"]
[PlyCount "109"]
[EventDate "2019.03.03"]
[EventType "tourn"]
[EventCountry "CRO"]
[SourceTitle "playchess.com"]
[Source "ChessBase"]
[SourceQuality "1"]
[TimeControl "5400+30"]

1. d4 {[%emt 0:00:30]} Nf6 {[%emt 0:00:30]} 2. Nf3 {[%emt 0:00:30]} e6 {[%emt 0:00:00]} 3. e3 {[%emt 0:00:30]} c5 {[%emt 0:00:00]} 4. Bd3 {[%emt 0:01:30]} d6 {[%emt 0:00:00]} 5. c4 {[%emt 0:01:30]} Nbd7 {[%emt 0:02:00]} 6. Nc3 {[%emt 0:00:30]} a6 {[%emt 0:00:30]} 7. O-O {[%emt 0:01:30]} g6 {[%emt 0:00:30]} 8. e4 {[%emt 0:04:30]} cxd4 {[%emt 0:03:30]} 9. Nxd4 {[%emt 0:00:30]} Bg7 {[%emt 0:03:30]} 10. Be3 {[%emt 0:05:30]} O-O {[%emt 0:02:30]} 11. Rc1 {[%emt 0:01:30]} Nc5 {[%emt 0:11:30]} 12. Bb1 {[%emt 0:08:30]} e5 {[%emt 0:02:30]} 13. Nf3 {[%emt 0:05:30]} Ne6 {[%emt 0:09:30]} 14. Nd5 {[%emt 0:04:30]} Nxd5 {[%emt 0:02:30]} 15. Qxd5 {[%emt 0:12:30]} Nf4 {[%emt 0:03:30]} 16. Bxf4 {[%emt 0:05:30]} exf4 {[%emt 0:01:30]} 17. b4 {[%emt 0:01:30]} Bg4 {[%emt 0:08:30]} 18. Qd3 {[%emt 0:07:30]} a5 {[%emt 0:07:30]} 19. b5 {[%emt 0:02:30]} Qe7 {[%emt 0:08:30]} 20. Rfd1 {[%emt 0:02:30]} Bxf3 {[%emt 0:04:30]} 21. Qxf3 {[%emt 0:00:30]} Be5 {[%emt 0:01:30]} 22. g3 {[%emt 0:06:30]} fxg3 {[%emt 0:03:30]} 23. hxg3 {[%emt 0:00:00]} h5 {[%emt 0:03:30]} 24. Kg2 {[%emt 0:00:00]} Kg7 {[%emt 0:00:30]} 25. Qe3 {[%emt 0:02:30]} a4 {[%emt 0:03:46]} 26. a3 {[%emt 0:02:30]} Rh8 {[%emt 0:02:22]} 27. f4 {[%emt 0:00:30]} Bf6 {[%emt 0:00:57]} 28. c5 {[%emt 0:01:30]} dxc5 {[%emt 0:03:49]} 29. e5 {[%emt 0:00:30]} Kg8 {[%emt 0:04:13]} 30. Qxc5 {[%emt 0:01:30]} h4 {[%emt 0:04:06]} 31. Rd6 {[%emt 0:05:15]} Bg7 {[%emt 0:02:52]} 32. Qd5 {[%emt 0:02:17]} hxg3 {[%emt 0:00:53]} 33. Bxg6 {[%emt 0:02:39]} Rh2+ {[%emt 0:00:26]} 34. Kf3 {[%emt 0:00:10]} Qh4 {[%emt 0:01:01]} 35. Bxf7+ {[%emt 0:03:27]} Kh8 {[%emt 0:00:17]} 36. Ke3 {[%emt 0:01:05]} g2 {[%emt 0:00:36]} 37. Rg1 {[%emt 0:00:55]} Rh3+ {[%emt 0:00:37]} 38. Ke4 {[%emt 0:01:35]} Qg3 {[%emt 0:00:31]} 39. Rd8+ {[%emt 0:02:39]} Rxd8 {[%emt 0:00:31]} 40. Qxd8+ {[%emt 0:00:01]} Kh7 {[%emt 0:00:06]} 41. Bg8+ {[%emt 0:00:15]} Kh6 {[%emt 0:00:56]} 42. Qd6+ {[%emt 0:00:24]} Qg6+ {[%emt 0:00:27]} 43. Qxg6+ {[%emt 0:00:03]} Kxg6 {[%emt 0:00:02]} 44. Rxg2+ {[%emt 0:00:10]} Kh6 {[%emt 0:00:03]} 45. f5 {[%emt 0:01:46]} Bf8 {[%emt 0:01:17]} 46. Rg6+ {[%emt 0:01:52]} Kh5 {[%emt 0:00:11]} 47. Bf7 {[%emt 0:00:08]} Kh4 {[%emt 0:00:40]} 48. Rg8 {[%emt 0:00:25]} Bxa3 {[%emt 0:00:39]} 49. Rh8+ {[%emt 0:00:02]} Kg3 {[%emt 0:00:17]} 50. Rxh3+ {[%emt 0:00:07]} Kxh3 {[%emt 0:00:01]} 51. f6 {[%emt 0:00:23]} Bb2 {[%emt 0:00:58]} 52. Kf5 {[%emt 0:00:16]} a3 {[%emt 0:00:41]} 53. Ba2 {[%emt 0:00:10]} Bc3 {[%emt 0:00:24]} 54. e6 {[%emt 0:00:06]} Kh4 {[%emt 0:00:45]} 55. e7 {[%emt 0:00:09]} 1-0

[Event "WGM Cvijet Mediterana 2019"]
[Site "Rijeka"]
[Date "2019.03.07"]
[Round "6.1"]
[White "Cvitan, Ena"]
[Black "Tomilova, Elena"]
[Result "0-1"]
[ECO "E40"]
[WhiteElo "2203"]
[BlackElo "2300"]
[Annotator "NA"]
[PlyCount "106"]
[EventDate "2019.03.03"]
[EventType "tourn"]
[EventCountry "CRO"]
[SourceTitle "playchess.com"]
[Source "ChessBase"]
[SourceQuality "1"]
[TimeControl "5400+30"]

1. d4 Nf6 2. c4 e6 3. Nc3 Bb4 4. e3 d5 5. a3 Bxc3+ 6. bxc3 c6 7. a4 O-O 8. Nf3 $11 b6 9. cxd5 cxd5 10. Ba3 Re8 11. Bb5 Bd7 12. Bd3 Nc6 13. O-O Na5 14. Ne5 Qc7 15. Bb4 Nc4 16. Bxc4 dxc4 17. a5 Bc6 18. Qc2 b5 19. Rfd1 Rac8 20. a6 Nd5 21. Bc5 f6 22. Nxc6 Qxc6 23. Rdb1 Nc7 24. Ra5 Ra8 25. Qa2 Red8 26. f3 Kh8 27. Qa3 e5 28. e4 exd4 29. cxd4 f5 30. d5 Qg6 31. Re1 fxe4 32. fxe4 Re8 33. d6 Rxe4 34. Rxe4 Qxe4 35. h3 Ne6 36. Rxb5 Qe1+ 37. Kh2 Qe5+ 38. Qg3 Qd5 39. Qf3 Qe5+ 40. Qg3 Qd5 41. d7 Rg8 42. Rb8 Qxc5 43. Rxg8+ Kxg8 44. Qb8+ Kf7 45. d8=Q Nxd8 46. Qxd8 c3 47. Qd7+ Kf6 48. Qd8+ Ke6 49. Qe8+ Kd6 50. Qf8+ Kc6 51. Qxg7 c2 52. Qb7+ Kd6 53. Qb8+ Qc7 0-1

[Event "WGM Cvijet Mediterana 2019"]
[Site "Rijeka"]
[Date "2019.03.07"]
[Round "6.2"]
[White "Babiy, Olga"]
[Black "Djukic, Sandra"]
[Result "1-0"]
[ECO "C11"]
[WhiteElo "2305"]
[BlackElo "2157"]
[Annotator "NA"]
[PlyCount "61"]
[EventDate "2019.03.03"]
[EventType "tourn"]
[EventCountry "CRO"]
[SourceTitle "playchess.com"]
[Source "ChessBase"]
[SourceQuality "1"]
[TimeControl "5400+30"]

1. e4 e6 2. Nc3 d5 3. d4 Nf6 4. e5 Nfd7 5. f4 c5 6. Nf3 Be7 $11 {LiveBook: 273 Games} 7. Be3 Nc6 8. Qd2 O-O 9. dxc5 Nxc5 10. O-O-O Qa5 11. Kb1 Rd8 12. Nb5 Qxd2 13. Rxd2 a6 14. Nbd4 Nxd4 15. Nxd4 Bd7 16. c4 dxc4 17. Bxc4 Rac8 18. Rc2 Kf8 19. g4 Ba4 20. b3 Rxd4 21. Bxd4 Bc6 22. Rd1 Rd8 23. Kc1 Ne4 24. Bb2 Rxd1+ 25. Kxd1 Bc5 26. Ke2 Bg1 27. Bd3 Bd5 28. Rc8+ Ke7 29. Rc7+ Kd8 30. Rxf7 Bxh2 31. Bxe4 1-0